bitfinex/quotes_ETHUSD_20240701
["timestamp","ask_amount","ask_price","bid_price","bid_amount"]
[1719846794507,2.4893,3481.0,3480.1,0.28797837]
[1719846794715,2.4893,3481.0,3480.1,1.87062984]
[1719846795549,0.07341865,3480.9,3480.1,1.87062984]
[1719846795752,2.4893,3481.0,3480.1,1.87062984]
[1719846796045,0.07338784,3480.8,3480.2,1.013]
[1719846796245,0.07341069,3480.9,3480.2,4.013]
[1719846796461,0.07335702,3480.7,3480.2,4.013]
[1719846796606,0.07337987,3480.8,3480.2,5.6497598]
[1719846796806,2.4893,3481.0,3480.2,5.6497598]
[1719846797207,2.4893,3481.0,3480.4,1.013]
[1719846797404,0.07340272,3480.9,3480.4,1.013]
[1719846804233,0.07340272,3480.9,3480.4,3.94366883]
[1719846804437,0.07340272,3480.9,3480.6,1.013]
[1719846804635,2.4893,3481.0,3480.6,1.0704548]
[1719846804826,0.07332448,3480.8,3480.6,1.0704548]
[1719846805029,2.4893,3481.0,3480.6,1.0704548]
[1719846805634,2.4893,3481.0,3480.6,0.0574548]
[1719846806554,5.3158,3481.3,3480.8,1.013]
[1719846806767,2.85,3481.3,3481.0,1.013]
[1719846808559,2.85,3481.3,3481.0,3.8857]
[1719846809052,2.2718,3481.2,3480.6,3.0]
[1719846809253,2.2718,3481.2,3480.7,3.0]
[1719846809832,2.2718,3481.2,3480.5,5.87313]
[1719846810723,2.2718,3481.2,3480.5,5.87309]
[1719846811216,2.2718,3481.2,3480.6,1.013]
[1719846811644,2.2718,3481.2,3480.6,3.88605]
[1719846811816,2.2718,3481.2,3480.7,3.0]
[1719846814545,0.07353193,3481.1,3480.7,3.0]
[1719846815727,2.85,3481.3,3481.0,2.87271]
[1719846815931,2.85,3481.3,3480.8,2.93028503]
[1719846816250,0.07367966,3481.2,3480.9,3.0]
[1719846816631,2.85,3481.3,3480.9,3.0]
[1719846816834,0.07372771,3481.1,3480.9,3.0]
[1719846817033,2.85,3481.3,3480.9,3.0]
[1719846817242,0.07369691,3481.0,3480.9,3.0]
[1719846817449,2.85,3481.3,3480.9,3.0]
[1719846817669,0.0736624,3481.0,3480.9,3.0]
[1719846817823,2.85,3481.3,3480.9,3.0]
[1719846818024,0.07363719,3481.0,3480.9,3.0]
[1719846818235,2.85,3481.3,3480.9,3.0]
[1719846818933,0.07368287,3481.2,3480.7,3.0]
[1719846819238,0.07368287,3481.2,3480.8,2.93033471]
[1719846819433,2.85,3481.3,3480.9,3.0]
[1719846819756,0.07362294,3481.1,3480.9,3.0]
[1719846820069,0.07364578,3481.2,3480.9,3.0]
[1719846820272,0.07364578,3481.2,3480.6,2.87301]
[1719846820273,0.0736001,3481.0,3480.7,3.0]
[1719846820580,2.85,3481.3,3480.7,3.0]
[1719846820781,1.07262,3481.2,3480.7,3.0]
[1719846820980,0.07369483,3481.2,3480.6,2.87306]
[1719846821194,2.85,3481.3,3480.7,3.0]
[1719846821484,0.07366086,3481.1,3480.7,3.0]
[1719846821777,0.0736837,3481.2,3480.7,3.0]
[1719846821988,2.85,3481.3,3480.7,3.0]
[1719846821989,0.07363802,3481.0,3480.7,3.0]
[1719846822141,2.85,3481.3,3480.7,3.0]
[1719846822338,0.07367106,3481.2,3480.7,3.0]
[1719846822542,0.07367106,3481.2,3480.5,3.05745479]
[1719846822742,2.85,3481.3,3480.5,5.93058479]
[1719846823193,0.07365842,3481.2,3480.5,5.93058479]
[1719846823758,2.85,3481.3,3480.5,5.93058479]
[1719846823954,2.85,3481.3,3480.5,3.0]
[1719846824256,0.07362664,3481.2,3480.4,5.87317]
[1719846824456,3.37262,3481.3,3480.4,5.87317]
[1719846824695,0.0736038,3481.1,3480.4,5.87317]
[1719846825058,3.37262,3481.3,3480.4,5.87317]
[1719846825278,0.07358096,3481.0,3480.5,2.87312]
[1719846825490,2.85,3481.3,3480.6,3.0]
[1719846825793,0.07362664,3481.2,3480.6,3.0]
[1719846825955,2.85,3481.3,3480.6,3.0]
[1719846826158,2.85,3481.3,3480.6,5.93051482]
[1719846826559,0.07365192,3481.2,3480.6,5.93051482]
[1719846826754,2.85,3481.3,3480.6,5.93051482]
[1719846826755,2.85,3481.3,3480.7,0.88036348]
[1719846827070,0.07370425,3481.2,3480.8,0.05744979]
[1719846827379,2.85,3481.3,3480.8,5.93033979]
[1719846827602,0.07367313,3481.1,3480.9,2.8728]
[1719846827893,2.85,3481.3,3480.9,2.93024986]
[1719846829199,2.85,3481.3,3480.9,4.13340319]
[1719846830198,2.85,3481.3,3480.9,1.26060319]
[1719846831000,2.85,3481.3,3480.9,1.20315333]
[1719846832374,2.85,3481.3,3480.8,5.8729]
[1719846832887,0.07369088,3481.2,3480.8,3.0]
[1719846833094,0.07369088,3481.2,3480.6,3.0]
[1719846833259,2.85,3481.3,3480.6,3.0]
[1719846833999,0.07369088,3481.2,3480.6,3.0]
[1719846834367,2.85,3481.3,3480.6,3.0]
[1719846834778,0.07367496,3481.2,3480.6,3.0]
[1719846835174,2.85,3481.3,3480.6,3.0]
[1719846835568,0.07367496,3481.2,3480.6,3.0]
[1719846835770,2.85,3481.3,3480.7,5.3640203]
[1719846835976,2.85,3481.3,3480.8,3.0]
[1719846836177,0.07367929,3481.2,3480.8,3.0]
[1719846836384,2.85,3481.3,3481.0,2.87268]
[1719846838689,2.85,3481.3,3480.9,1.013]
[1719846838878,2.85,3481.3,3480.9,2.87277]
[1719846843345,2.85,3481.3,3480.8,3.0]
[1719846845229,2.85,3481.3,3480.7,4.013]
[1719846845432,0.07366444,3481.2,3480.8,3.0]
[1719846845594,2.85,3481.3,3480.7,1.013]
[1719846846825,0.07366444,3481.2,3480.7,1.013]
[1719846847028,2.85,3481.3,3480.7,1.013]
[1719846847207,0.07366444,3481.2,3481.0,1.013]
[1719846847527,2.85,3481.3,3481.0,1.013]
[1719846847730,2.2953,3481.8,3481.2,3.88557]
[1719846847934,0.1202648,3481.9,3481.7,1.013]
[1719846848095,0.1202648,3481.9,3481.7,3.94256436]
[1719846848429,0.1202648,3481.9,3481.8,3.05743574]
[1719846848631,0.1202648,3481.9,3481.8,3.0]
[1719846848798,0.1202648,3481.9,3481.5,1.013]
[1719846848994,0.1202648,3481.9,3481.7,1.013]
[1719846849837,2.3358,3482.7,3481.8,5.34607]
[1719846850005,2.3358,3482.7,3481.6,3.793933]
[1719846850006,2.3358,3482.7,3481.9,3.0]
[1719846850330,2.3358,3482.7,3481.9,1.013]
[1719846850498,2.3358,3482.7,3481.9,4.013]
[1719846850826,2.3358,3482.7,3482.0,0.688507]
[1719846851222,2.3391,3482.6,3482.0,0.688507]
[1719846851404,2.3391,3482.6,3481.7,4.013]
[1719846853336,2.3391,3482.6,3482.0,1.013]
[1719846854570,2.3391,3482.6,3482.2,1.013]
[1719846854723,2.3391,3482.6,3482.0,1.013]
[1719846854917,0.06856983,3482.5,3482.0,1.013]
[1719846855110,2.3391,3482.6,3482.1,0.388504]
[1719846855347,2.3391,3482.6,3482.2,1.013]
[1719846855707,0.06856983,3482.5,3482.2,1.013]
[1719846856019,0.06856983,3482.5,3482.1,0.388504]
[1719846856218,2.3391,3482.6,3481.9,1.013]
[1719846856434,3.3521,3482.6,3481.7,4.013]
[1719846856634,3.10710375,3482.5,3481.6,3.921703]
[1719846856835,2.2668,3482.3,3481.5,4.013]
[1719846857041,1.013,3482.0,3481.2,0.68157979]
[1719846857348,1.013,3482.0,3481.1,1.013]
[1719846857349,0.06856351,3481.9,3481.1,1.013]
[1719846857661,2.2668,3482.1,3481.1,3.88564]
[1719846857951,2.2668,3482.1,3481.3,1.013]
[1719846858280,2.2668,3482.1,3481.0,2.87273]
[1719846858457,2.2668,3482.1,3481.2,1.013]
[1719846858615,2.59478,3482.1,3481.2,1.013]
[1719846859011,2.275,3482.0,3481.2,1.013]
[1719846859243,0.06853827,3481.9,3481.2,1.013]
[1719846859564,0.06853827,3481.9,3480.9,2.87278]
[1719846859752,2.356,3481.8,3480.8,7.32]
[1719846859904,0.32798,3482.1,3480.8,7.32]
[1719846859905,2.356,3481.4,3480.8,7.32]
[1719846860109,2.356,3481.4,3480.2,5.21087]
[1719846860110,2.356,3481.4,3480.6,1.013]
[1719846860311,0.06831565,3481.3,3480.9,1.013]
[1719846861465,2.3523,3481.8,3481.2,1.013]
[1719846861642,0.30180351,3481.7,3481.2,1.013]
[1719846861845,0.30180351,3481.7,3480.9,2.93019051]
[1719846862020,0.06657351,3481.7,3480.9,2.93019051]
[1719846862866,0.06657351,3481.7,3481.0,2.8727]
[1719846863177,2.3523,3481.8,3481.1,2.87264]
[1719846863372,3.14972769,3482.1,3481.3,2.87243]
[1719846863574,3.14972769,3482.1,3481.3,0.05744314]
[1719846863800,0.06674515,3482.0,3481.1,2.87264]
[1719846864070,3.14972769,3482.1,3481.2,0.817543]
[1719846864279,3.14972769,3482.1,3481.3,0.05744316]
[1719846864571,0.06674515,3482.0,3481.3,0.05744316]
[1719846864771,0.06674515,3482.0,3481.3,2.92987316]
[1719846864971,0.06674515,3482.0,3481.4,2.87234]
[1719846865150,0.06674515,3482.0,3481.5,0.66197562]
[1719846865977,0.06674515,3482.0,3481.6,2.8722]
[1719846867134,0.06674515,3482.0,3481.7,2.92957659]
[1719846867449,0.06674515,3482.0,3481.8,2.87206]
[1719846867650,0.06674515,3482.0,3481.7,0.05743659]
[1719846867874,0.06674515,3482.0,3481.8,0.35916122]
[1719846868188,0.06674515,3482.0,3481.8,0.41659626]
[1719846868344,0.06674515,3482.0,3481.8,3.23122122]
[1719846870444,0.06674515,3482.0,3481.9,2.87199]
[1719846871291,2.85,3482.1,3481.9,2.87199]
[1719846871446,2.85,3482.1,3482.0,0.85658112]
[1719846873085,2.85,3482.1,3481.8,0.35916122]
[1719846873285,2.85,3482.1,3481.9,2.87194]
[1719846873496,0.06678992,3482.0,3481.9,2.87194]
[1719846874150,0.06678992,3482.0,3481.6,2.87224]
[1719846874352,0.06678992,3482.0,3481.7,2.87215]
[1719846874649,2.85,3482.1,3481.5,3.53422562]
[1719846874844,2.85,3482.1,3481.5,6.40647562]
[1719846875050,2.85,3482.1,3481.5,3.53422562]
[1719846876290,5.1441,3482.1,3481.5,3.53422562]
[1719846876478,0.06679872,3482.0,3481.6,2.87223]
[1719846876680,0.06679872,3482.0,3481.6,3.54232394]
[1719846877467,0.06679872,3482.0,3481.6,0.67009394]
[1719846877671,0.06679872,3482.0,3481.5,0.66197562]
[1719846877871,0.06679872,3482.0,3481.5,3.53427562]
[1719846878272,0.06679872,3482.0,3481.6,2.87222]
[1719846880566,0.3004235,3481.9,3481.6,2.87218]
[1719846880958,0.06676755,3481.8,3481.6,2.87218]
[1719846881275,0.06676755,3481.8,3481.7,0.64065156]
[1719846881669,0.06676755,3481.8,3481.6,2.87218]
[1719846881994,2.85,3482.1,3481.6,3.88418]
[1719846882218,2.85,3482.1,3481.8,1.012]
[1719846882799,2.85,3482.1,3481.0,2.87268]
[1719846883021,2.8542,3482.0,3481.3,3.0]
[1719846883176,2.8542,3482.0,3481.2,1.012]
[1719846883374,0.06686721,3481.9,3480.9,7.32]
[1719846883591,2.8542,3481.8,3481.0,1.012]
[1719846885468,0.0668073,3481.7,3481.0,1.012]
[1719846885657,2.8542,3481.8,3481.0,2.16083474]
[1719846885857,0.0667579,3481.7,3481.0,2.16083474]
[1719846886672,0.0667579,3481.7,3480.9,7.60352745]
[1719846886673,0.0667579,3481.7,3480.9,7.32]
[1719846886875,2.8542,3481.8,3480.9,8.332]
[1719846887198,2.8542,3481.8,3480.8,1.012]
[1719846887199,3.47975241,3481.7,3480.8,1.012]
[1719846887408,2.46775241,3481.7,3481.0,1.012]
[1719846887703,0.55,3481.6,3481.0,1.012]
[1719846887926,0.06667271,3481.5,3481.0,1.012]
[1719846888062,0.06667271,3481.5,3481.2,1.012]
[1719846888261,2.401,3481.7,3481.2,1.012]
[1719846888466,0.06668675,3481.6,3481.2,1.012]
[1719846888763,0.06668675,3481.6,3481.4,1.012]
[1719846889812,0.06668675,3481.6,3481.2,1.012]
[1719846893737,0.06668675,3481.6,3481.2,1.06944511]
[1719846893909,0.06668675,3481.6,3481.4,1.012]
[1719846895037,0.06668675,3481.6,3481.5,5.74464]
[1719846895235,2.362,3482.0,3481.3,2.87245]
[1719846895390,2.362,3482.0,3481.7,1.012]
[1719846895894,0.06227554,3481.9,3481.7,1.012]
[1719846896700,0.06227554,3481.9,3481.4,3.0]
[1719846896901,2.362,3482.0,3481.3,1.012]
[1719846897143,0.55,3481.9,3481.3,1.012]
[1719846897508,0.06229248,3481.8,3481.3,1.012]
[1719846897715,0.06229248,3481.8,3481.1,3.0]
[1719846897716,2.362,3481.7,3481.1,3.0]
[1719846898039,2.362,3481.7,3480.8,10.19288]
[1719846898040,2.362,3481.7,3480.9,4.012]
[1719846898334,0.06222915,3481.6,3481.1,1.012]
[1719846899693,0.06222915,3481.6,3481.0,1.44892219]
[1719846899898,2.362,3481.7,3481.0,1.44892219]
[1719846900132,2.362,3481.7,3480.9,3.0]
[1719846900595,0.06221478,3481.6,3480.9,3.0]
[1719846901052,0.55,3481.5,3480.9,3.0]
[1719846901198,0.61219195,3481.5,3480.9,3.0]
[1719846901554,0.55,3481.5,3480.9,3.0]
[1719846901840,0.55,3481.6,3480.9,3.0]
[1719846902195,4.10763021,3482.1,3481.0,0.3]
[1719846902428,4.10763021,3482.1,3481.1,2.2573]
[1719846902429,0.06219195,3481.5,3481.1,2.2573]
[1719846902632,2.3469,3481.8,3481.2,2.87251]
[1719846902829,0.0621415,3481.4,3481.3,2.87249]
[1719846903033,0.0621415,3481.4,3481.3,5.87249]
[1719846903246,2.3469,3481.8,3481.3,7.215739]
[1719846903438,0.0621415,3481.4,3481.3,4.343249]
[1719846903590,2.3469,3481.8,3481.3,1.343249]
[1719846903795,0.06007964,3481.4,3481.3,1.343249]
[1719846904031,2.3469,3481.8,3481.3,1.343249]
[1719846904844,2.3469,3481.8,3481.2,3.0]
[1719846905007,2.3469,3481.8,3481.1,5.87265]
[1719846905330,2.3469,3481.8,3481.2,0.05744564]
[1719846905749,2.3469,3481.8,3481.1,5.87265]
[1719846906248,0.55,3481.7,3481.1,3.0]
[1719846906402,0.55,3481.7,3480.9,3.0]
[1719846906603,0.55,3481.7,3481.0,0.587288]
[1719846906803,2.3434,3481.6,3480.5,0.28438444]
[1719846907040,2.43,3481.5,3480.0,7.32]
[1719846907221,2.3434,3481.4,3480.0,7.32]
[1719846907519,0.05579223,3481.3,3480.0,7.32]
[1719846907732,0.55,3481.2,3480.1,0.732]
[1719846908098,0.05574654,3481.1,3480.1,0.732]
[1719846908340,0.55,3481.0,3480.0,7.32]
[1719846908550,2.3611,3480.9,3480.0,7.32]
[1719846908853,2.41685648,3480.9,3479.6,3.0]
[1719846909150,2.3611,3480.9,3479.6,3.0]
[1719846909901,2.4404,3480.7,3479.6,3.0]
[1719846910126,0.60548651,3480.6,3479.5,7.32]
[1719846910397,2.4404,3480.5,3479.5,7.32]
[1719846910737,0.05559225,3480.4,3479.5,9.75]
[1719846911452,2.4404,3480.5,3479.5,9.75]
[1719846911739,2.4116,3480.9,3479.9,2.43]
[1719846911957,2.4116,3480.9,3480.3,2.43]
[1719846912158,0.05545749,3480.8,3480.3,2.43]
[1719846912384,0.05545749,3480.8,3480.4,0.05746012]
[1719846912674,0.05545749,3480.8,3480.3,2.43]
[1719846912833,0.05545749,3480.8,3480.4,0.05745782]
[1719846913036,0.05545749,3480.8,3480.5,0.24874578]
[1719846913360,2.85,3481.0,3480.5,0.24874578]
[1719846913726,0.05561642,3480.9,3480.5,0.24874578]
[1719846914478,0.05561642,3480.9,3480.3,2.43]
[1719846914626,2.85,3481.0,3480.3,2.43]
[1719846915275,2.3753,3480.9,3480.3,2.43]
[1719846915470,0.55,3480.8,3480.0,7.32]
[1719846915627,0.05567535,3480.7,3480.0,7.32]
[1719846916255,2.3708,3480.6,3480.0,7.32]
[1719846916671,0.05562958,3480.5,3480.0,7.32]
[1719846917537,0.05562958,3480.5,3479.4,7.32]
[1719846917736,0.55,3480.4,3479.4,7.32]
[1719846918039,0.55,3480.4,3479.5,2.192]
[1719846918437,0.55,3480.5,3479.5,2.192]
[1719846918643,0.05556702,3480.4,3479.5,2.192]
[1719846918869,0.55,3480.5,3479.5,2.192]
[1719846919057,0.55,3480.5,3479.4,7.32]
[1719846919233,0.05555905,3480.4,3479.5,3.0]
[1719846919432,0.55,3480.5,3479.5,3.0]
[1719846919759,0.05555905,3480.4,3479.5,3.0]
[1719846920130,0.55,3480.5,3479.5,3.0]
[1719846920481,2.4899,3480.4,3479.5,3.0]
[1719846920642,0.33397992,3480.3,3479.5,3.0]
[1719846921268,2.4899,3480.4,3479.5,3.0]
[1719846922047,2.4899,3480.4,3479.4,7.32]
[1719846922338,0.55,3480.3,3479.4,7.32]
[1719846922960,0.55,3480.3,3479.3,2.43]
[1719846923281,2.4971,3480.2,3479.3,2.43]
[1719846923551,2.4971,3480.2,3479.4,0.243]
[1719846925382,2.4971,3480.2,3479.4,3.243]
[1719846926267,2.4971,3480.2,3479.4,3.0]
[1719846926597,0.55,3480.1,3479.1,3.0]
[1719846926897,0.55,3480.1,3479.0,3.0]
[1719846929217,2.3879,3480.0,3478.9,5.43]
[1719846929387,2.3879,3480.0,3479.0,0.94368]
[1719846929827,2.3879,3480.0,3479.0,3.94368]
[1719846930194,0.55,3479.9,3479.0,3.94368]
[1719846932417,0.55,3479.9,3479.0,3.0]
[1719846932594,0.55,3479.9,3478.6,3.28446661]
[1719846932790,0.55,3479.9,3478.6,3.0]
[1719846933582,2.3846,3479.8,3478.6,3.0]
[1719846933923,0.55,3479.7,3478.5,8.3048]
[1719846934218,0.55,3479.7,3478.6,1.52325]
[1719846934403,0.55,3479.7,3478.6,4.52325]
[1719846936424,2.3977,3479.6,3478.6,4.52325]
[1719846941824,2.3977,3479.6,3478.5,3.29652799]
[1719846942025,2.3977,3479.6,3478.5,3.0]
[1719846942216,3.0362,3479.5,3478.4,2.43]
[1719846942426,2.54095938,3479.5,3478.4,2.43]
[1719846943004,2.54095938,3479.5,3477.8,10.19531]
[1719846943326,2.3746,3479.3,3477.9,2.236531]
[1719846943559,0.85909594,3479.4,3477.8,5.30531]
[1719846943560,0.05461796,3479.2,3477.8,5.30531]
[1719846943717,2.2872,3479.1,3477.8,5.30538]
[1719846944337,2.2872,3479.1,3477.8,2.87538]
[1719846944646,2.2872,3479.1,3477.9,3.177988]
[1719846946405,2.4614,3478.9,3477.9,3.177988]
[1719846946608,2.9184,3478.8,3477.9,3.177988]
[1719846947597,2.9184,3478.8,3477.9,0.747988]
[1719846947798,2.9184,3478.8,3477.7,5.43]
[1719846948004,0.29960915,3479.5,3477.7,5.43]
[1719846948005,0.29960915,3479.5,3478.1,1.729]
[1719846948356,0.05261682,3479.4,3479.0,2.43]
[1719846948651,2.3684,3479.6,3479.0,2.43]
[1719846949450,2.3684,3479.6,3479.0,2.960452]
[1719846949609,2.3684,3479.6,3479.0,2.43]
[1719846950720,2.3684,3479.6,3479.0,5.43]
[1719846951954,2.3684,3479.6,3479.1,2.87428]
[1719846952166,2.3684,3479.6,3479.0,5.43]
[1719846952467,2.3684,3479.6,3479.1,2.8743]
[1719846952757,2.3684,3479.6,3479.2,1.12362219]
[1719846956539,2.3684,3479.6,3479.0,5.43]
[1719846957144,2.3684,3479.6,3479.0,8.30437]
[1719846957348,2.3684,3479.6,3479.0,5.43]
[1719846957549,2.3684,3479.6,3478.7,3.0]
[1719846957965,2.3684,3479.6,3478.7,5.87461]
[1719846958149,2.3684,3479.6,3478.8,4.436961]
[1719846958355,2.3684,3479.6,3478.9,3.0]
[1719846958579,2.3684,3479.6,3478.9,5.87446]
[1719846958741,2.3684,3479.6,3479.1,2.8743]
[1719846959162,2.3684,3479.6,3479.1,5.74854]
[1719846959483,2.3684,3479.6,3479.2,3.99781255]
[1719846960082,5.2399,3479.9,3479.2,3.99781255]
[1719846960276,5.2399,3479.9,3479.2,1.12360255]
[1719846960456,0.05292615,3479.8,3479.0,5.30438]
[1719846960636,0.05292615,3479.8,3479.0,2.43]
[1719846960841,5.2399,3479.9,3479.0,2.43]
[1719846961041,0.55,3479.8,3478.9,3.0]
[1719846961359,0.60292725,3479.8,3478.8,3.0]
[1719846961685,0.58428272,3479.7,3478.8,3.0]
[1719846961873,0.55,3479.6,3478.6,5.43]
[1719846962045,0.55,3479.6,3478.7,2.87462]
[1719846962367,2.313,3479.5,3478.8,3.0]
[1719846962563,0.0528664,3479.4,3478.8,3.0]
[1719846963475,0.0528664,3479.4,3478.9,2.87445]
[1719846963676,0.0528664,3479.4,3479.0,3.0]
[1719846963843,0.0528664,3479.4,3478.8,6.59144653]
[1719846964044,2.313,3479.5,3478.8,6.59144653]
[1719846964487,0.05285964,3479.4,3478.8,3.71693653]
[1719846964656,0.05285964,3479.4,3478.8,0.71693653]
[1719846964857,2.313,3479.5,3478.8,0.71693653]
[1719846965062,2.313,3479.5,3478.9,2.87447]
[1719846965270,2.313,3479.5,3479.1,2.87428]
[1719846965461,2.313,3479.5,3479.0,3.0]
[1719846965462,0.05285964,3479.4,3479.0,2.43]
[1719846965655,2.313,3479.5,3479.0,5.43]
[1719846966664,2.313,3479.5,3479.0,8.30437]
[1719846967586,2.313,3479.5,3479.0,5.43]
[1719846968376,2.313,3479.5,3478.9,3.0]
[1719846968624,2.313,3479.5,3478.8,3.0]
[1719846969859,2.313,3479.5,3478.6,5.43]
[1719846970061,2.313,3479.5,3478.7,1.849952]
[1719846970388,2.313,3479.5,3478.7,4.849952]
[1719846970560,0.55,3479.4,3478.7,4.849952]
[1719846970764,0.55,3479.4,3478.7,3.0]
[1719846970970,0.55,3479.4,3478.6,5.43]
[1719846971299,0.55,3479.4,3478.6,8.30471]
[1719846972294,0.55,3479.4,3478.6,5.43]
[1719846972651,2.3079,3479.3,3478.6,3.0]
[1719846972857,2.59369,3479.3,3478.6,3.0]
[1719846973284,2.59369,3479.3,3478.5,7.32]
[1719846973898,2.3079,3479.3,3478.5,7.32]
[1719846974469,2.3079,3479.3,3478.6,3.0]
[1719846976565,2.3079,3479.3,3478.7,2.87458]
[1719846978805,2.3079,3479.3,3478.8,5.30452]
[1719846979105,2.2895,3479.8,3479.1,2.87424]
[1719846979609,0.05290566,3479.7,3479.1,2.87424]
[1719846979925,0.05290566,3479.7,3479.1,3.992107]
[1719846980246,2.2895,3479.8,3479.1,3.992107]
[1719846980697,0.05290566,3479.7,3479.1,3.992107]
[1719846980902,0.05290566,3479.7,3479.2,2.8742]
[1719846981241,2.2895,3479.8,3479.1,3.992107]
[1719846981728,0.05297792,3479.7,3479.1,3.992107]
[1719846982032,0.05297792,3479.7,3479.2,0.9866557]
[1719846982247,2.2895,3479.8,3479.1,2.87424]
[1719846982730,0.05297792,3479.7,3479.1,2.87424]
[1719846982900,0.05297792,3479.7,3479.5,2.87396]
[1719846983108,2.2895,3479.8,3479.5,2.8739]
[1719846983326,0.05310686,3479.6,3479.5,2.8739]
[1719846983671,2.85,3479.9,3479.7,2.87375]
[1719846983839,2.85,3479.9,3479.8,2.87372]
[1719846984391,0.88281412,3479.9,3479.8,2.87372]
[1719846984590,2.2837,3481.0,3480.7,2.87296]
[1719846984817,2.2837,3481.0,3479.8,9.50276289]
[1719846984818,2.2837,3481.0,3480.5,2.87308]
[1719846985026,2.2837,3481.0,3480.6,3.0]
[1719846985191,2.2837,3481.0,3480.4,5.43]
[1719846985402,2.2837,3481.0,3480.4,6.992331]
[1719846985930,2.2837,3481.0,3480.2,7.32]
[1719846987126,0.55,3480.9,3480.2,7.32]
[1719846987908,2.2837,3481.0,3480.2,7.32]
[1719846988090,0.55,3480.9,3480.2,7.32]
[1719846988605,0.55,3480.9,3480.0,2.87354]
[1719846989311,0.83337,3480.9,3480.0,2.87354]
[1719846990497,0.55,3480.7,3479.7,10.1938]
[1719846991505,0.55,3480.7,3479.7,7.32]
[1719846991709,2.3212,3480.6,3479.7,7.32]
[1719846991928,0.55,3480.5,3479.7,7.32]
[1719846992901,2.3153,3480.4,3479.5,2.71305643]
[1719846993543,2.3153,3480.4,3479.5,2.43]
[1719846994003,0.55,3480.3,3479.5,2.43]
[1719846994338,0.04790145,3480.2,3479.5,2.43]
[1719846994546,0.55,3480.1,3479.5,2.43]
[1719846994728,2.4293,3480.0,3479.5,2.43]
[1719846995096,2.4293,3480.0,3479.3,3.0]
[1719846995768,2.72723,3480.0,3479.2,7.32]
[1719846995917,0.55,3479.9,3479.2,7.32]
[1719846997511,0.55,3479.9,3479.1,2.43]
[1719846998511,0.55,3479.9,3479.1,5.3043]
[1719846998728,0.55,3479.9,3479.1,6.14047821]
[1719847000817,0.55,3479.9,3479.1,3.26617821]
[1719847001017,0.55,3479.9,3479.1,2.43]
[1719847001644,0.55,3479.9,3478.9,2.8744]
[1719847001848,2.384,3479.8,3478.9,2.8744]
[1719847002440,2.384,3479.8,3479.0,2.87436]
[1719847004572,2.384,3479.8,3479.1,2.87425]
[1719847004772,2.384,3479.8,3479.1,3.77732745]
[1719847005647,2.384,3479.8,3479.1,0.96055952]
[1719847005967,2.384,3479.8,3479.2,2.87414]
[1719847006182,2.384,3479.8,3479.3,2.87414]
[1719847006868,2.384,3479.8,3479.2,2.87414]
[1719847006869,2.384,3479.8,3479.4,2.87404]
[1719847008250,2.384,3479.8,3479.2,5.74829]
[1719847008575,2.384,3479.8,3479.2,2.87414]
[1719847008870,2.384,3479.8,3479.3,3.404524]
[1719847014080,2.384,3479.8,3479.7,1.013]
[1719847016080,2.384,3479.8,3479.5,1.013]
[1719847016081,2.934,3479.8,3479.5,1.013]
[1719847016289,0.55,3479.7,3479.5,1.013]
[1719847016472,0.59754326,3479.7,3479.5,1.013]
[1719847016839,0.59754326,3479.7,3479.3,1.013]
[1719847017244,0.59754326,3479.7,3479.1,7.32]
[1719847017483,0.59754326,3479.7,3479.2,1.013]
[1719847018196,2.2689,3479.6,3479.2,1.013]
[1719847018498,0.04747362,3479.5,3479.1,7.32]
[1719847018708,0.04747362,3479.5,3479.1,1.013]
[1719847019356,0.28663736,3479.5,3479.1,1.013]
[1719847019695,0.04742462,3479.4,3479.1,1.013]
[1719847020061,0.28663736,3479.5,3479.1,1.013]
[1719847020396,0.04748166,3479.4,3479.1,1.013]
[1719847020752,0.28663736,3479.5,3479.1,1.013]
[1719847021062,0.04747821,3479.4,3479.1,1.013]
[1719847021451,0.28663736,3479.5,3479.1,1.013]
[1719847021655,0.04740708,3479.4,3479.1,1.013]
[1719847022089,0.28663736,3479.5,3479.1,1.013]
[1719847022494,0.04739574,3479.4,3479.1,1.013]
[1719847022788,0.31529331,3479.4,3478.6,7.32]
[1719847023012,2.2801,3479.3,3478.6,7.32]
[1719847023154,2.8301,3479.3,3478.7,1.013]
[1719847023354,2.2801,3479.3,3478.7,1.013]
[1719847023554,2.2801,3479.1,3478.6,7.32]
[1719847023806,2.56311,3479.1,3478.0,7.32]
[1719847024008,2.2801,3478.9,3478.3,1.013]
[1719847024235,2.2801,3478.9,3477.8,5.19916]
[1719847024236,0.0455047,3478.8,3478.5,1.013]
[1719847025623,2.2801,3478.9,3478.5,1.013]
[1719847025804,2.2801,3478.9,3478.7,1.013]
[1719847026007,0.04542983,3478.8,3478.7,1.013]
[1719847026311,2.2801,3478.9,3478.7,1.013]
[1719847026706,2.3374,3479.2,3478.7,1.013]
[1719847026907,2.3374,3479.2,3478.9,1.013]
[1719847027127,2.3374,3479.2,3479.1,1.013]
[1719847027645,2.2874,3480.0,3479.1,1.013]